bitfinex/quotes_SOLUSD_20250422
["timestamp","ask_amount","ask_price","bid_price","bid_amount"]
[1745320765514,0.03,139.96,139.94,8.13139877]
[1745320765809,0.03,139.96,139.95,8.13139877]
[1745320769992,0.03,139.96,139.94,8.13139877]
[1745320771010,0.03,139.96,139.95,8.13139877]
[1745320776909,0.03,139.96,139.95,8.27356034]
[1745320777693,0.03,139.96,139.95,15.41896941]
[1745320780715,0.03,139.96,139.95,8.27356034]
[1745320783420,0.03,139.96,139.94,26.0]
[1745320783601,0.03,139.96,139.95,8.13139877]
[1745320785816,0.03,139.96,139.95,8.27356034]
[1745320794031,0.03,139.96,139.95,8.13139877]
[1745320794234,0.03,139.96,139.95,8.27356034]
[1745320796137,0.03,139.96,139.95,8.13139877]
[1745320799541,0.03,139.96,139.95,8.27356034]
[1745320800440,0.03,139.96,139.95,15.41896941]
[1745320800848,0.03,139.96,139.95,8.27356034]
[1745320804042,0.03,139.96,139.95,8.13139877]
[1745320804747,0.03,139.96,139.95,8.27356034]
[1745320806643,0.03,139.98,139.97,26.14216157]
[1745320806826,0.03,139.98,139.97,34.27356034]
[1745320807247,0.03,139.99,139.97,52.9232092]
[1745320807428,0.03,139.99,139.98,8.13139877]
[1745320808547,0.03,139.99,139.98,15.27527646]
[1745320808746,5.557863,140.0,139.99,0.14216157]
[1745320808936,0.03,140.03,140.0,18.64964886]
[1745320809139,0.03,140.03,140.01,8.13139877]
[1745320810229,0.03,140.03,140.01,8.27356034]
[1745320813553,0.03,140.03,140.02,34.27356034]
[1745320821848,0.03,140.06,140.05,26.0]
[1745320822165,0.03,140.06,140.05,34.27356034]
[1745320822647,0.03,140.06,140.05,34.13139877]
[1745320829064,0.03,140.06,140.05,8.13139877]
[1745320836258,0.03,140.06,140.05,8.27356034]
[1745320836767,0.03,140.06,140.05,34.27356034]
[1745320838154,0.03,140.06,140.05,34.13139877]
[1745320840076,0.03,140.06,140.05,34.27356034]
[1745320848682,0.03,140.06,140.05,34.13139877]
[1745320850489,0.03,140.06,140.05,34.27356034]
[1745320851594,0.03,140.06,140.05,34.13139877]
[1745320865706,0.03,140.06,140.05,34.27356034]
[1745320868605,0.03,140.06,140.05,34.13139877]
[1745320868807,0.03,140.06,140.05,34.27356034]
[1745320873609,0.03,140.06,140.0,32.52559508]
[1745320873908,0.03,140.06,140.05,34.13139877]
[1745320876693,0.03,140.06,140.05,41.41386737]
[1745320877007,0.03,140.06,140.05,34.27356034]
[1745320878904,0.03,140.06,140.05,41.41386737]
[1745320879620,0.03,140.06,140.05,47.93946245]
[1745320880006,0.03,140.08,140.07,66.65699385]
[1745320880521,0.03,140.08,140.07,66.79915542]
[1745320880710,0.03,140.08,140.07,81.11915542]
[1745320880910,0.03,140.08,140.07,88.25844291]
[1745320881516,0.03,140.08,140.07,88.11628134]
[1745320881696,0.03,140.08,140.07,88.25844291]
[1745320883006,0.03,140.08,140.07,81.11915542]
[1745320883514,0.03,140.08,140.07,88.25844291]
[1745320883812,0.03,140.08,140.07,81.11915542]
[1745320883992,0.03,140.08,140.07,88.25844291]
[1745320884196,0.03,140.09,140.07,106.90809177]
[1745320884397,0.03,140.09,140.07,189.50809177]
[1745320884598,0.03,140.09,140.08,8.13139877]
[1745320884804,0.03,140.09,140.08,15.27017661]
[1745320885409,0.07,140.1,140.08,98.01233818]
[1745320885624,0.07,140.1,140.09,34.13139877]
[1745320886300,0.07,140.1,140.09,152.3932092]
[1745320886617,0.03,140.12,140.11,26.14216157]
[1745320886819,0.03,140.12,140.11,34.27356034]
[1745320887200,0.03,140.12,140.11,34.13139877]
[1745320890616,0.03,140.12,140.11,34.27356034]
[1745320893730,0.03,140.12,140.11,34.13139877]
[1745320893922,0.03,140.12,140.11,34.27356034]
[1745320895922,0.03,140.12,140.11,34.13139877]
[1745320899926,0.03,140.12,140.11,41.41080964]
[1745320900238,0.03,140.12,140.11,34.27356034]
[1745320900438,0.03,140.12,140.11,26.14216157]
[1745320900619,0.03,140.12,140.11,34.27356034]
[1745320902450,0.03,140.12,140.11,34.13139877]
[1745320902622,0.03,140.12,140.11,34.27356034]
[1745320905844,0.03,140.12,140.11,34.13139877]
[1745320908942,0.03,140.12,140.11,34.27356034]
[1745320910444,0.03,140.12,140.11,41.41080964]
[1745320913241,0.03,140.12,140.11,34.27356034]
[1745320913550,0.03,140.12,140.11,41.41080964]
[1745320917047,0.03,140.14,140.12,18.79181043]
[1745320917247,0.03,140.14,140.13,66.65699385]
[1745320918229,0.03,140.14,140.13,73.79322449]
[1745320918540,0.03,140.14,140.13,34.13139877]
[1745320921251,0.03,140.14,140.13,77.00139877]
[1745320921747,0.03,140.14,140.13,109.52699385]
[1745320921954,0.03,140.14,140.13,34.27356034]
[1745320922156,0.03,140.14,140.13,73.93538606]
[1745320922341,0.03,140.14,140.13,34.27356034]
[1745320923139,0.03,140.14,140.13,41.40979098]
[1745320923335,0.03,140.14,140.13,73.93538606]
[1745320924235,0.03,140.17,140.16,26.0]
[1745320924432,0.03,140.17,140.16,34.27356034]
[1745320925043,0.03,140.17,140.16,26.0]
[1745320925451,0.03,140.17,140.16,34.13139877]
[1745320926735,0.03,140.17,140.16,8.13139877]
[1745320929948,0.03,140.17,140.14,26.0]
[1745320930159,1.5683,140.16,140.14,8.13139877]
[1745320931747,8.70309513,140.16,140.14,8.13139877]
[1745320932048,1.5683,140.16,140.14,8.13139877]
[1745320933058,8.70316142,140.16,140.11,26.0]
[1745320933235,8.70316142,140.16,140.13,8.13139877]
[1745320934270,8.70316142,140.16,140.14,8.13139877]
[1745320935967,1.5683,140.16,140.14,8.13139877]
[1745320938259,1.5683,140.16,140.15,8.13139877]
[1745320938645,0.03,140.17,140.15,8.13139877]
[1745320938846,0.03,140.17,140.16,8.13139877]
[1745320941282,0.03,140.17,140.15,26.0]
[1745320941654,0.03,140.17,140.16,8.13139877]
[1745320945279,0.03,140.17,140.15,26.0]
[1745320945460,0.03,140.17,140.13,26.0]
[1745320945666,0.03,140.17,140.14,34.13139877]
[1745320946085,0.03,140.17,140.15,8.13139877]
[1745320946977,0.03,140.17,140.16,8.13139877]
[1745320947474,0.03,140.17,140.14,26.0]
[1745320947654,0.03,140.17,140.16,8.13139877]
[1745320960606,0.03,140.17,140.14,0.14216157]
[1745320960792,0.03,140.17,140.16,8.13139877]
[1745320961783,0.03,140.17,140.15,26.0]
[1745320962107,0.03,140.17,140.15,34.13139877]
[1745320962400,0.03,140.17,140.13,26.0]
[1745320962592,0.03,140.17,140.15,8.13139877]
[1745320963281,0.03,140.17,140.16,8.13139877]
[1745320964002,0.03,140.17,140.13,26.0]
[1745320964305,0.03,140.17,140.14,8.13139877]
[1745320964999,0.03,140.17,140.13,26.0]
[1745320965214,0.03,140.17,140.14,8.13139877]
[1745320971109,0.03,140.17,140.13,26.0]
[1745320971306,0.03,140.17,140.14,8.13139877]
[1745320972513,0.03,140.17,140.13,26.0]
[1745320972804,0.03,140.17,140.14,8.13139877]
[1745320973003,0.03,140.17,140.13,34.13139877]
[1745320973992,0.03,140.17,140.14,8.13139877]
[1745320976123,0.03,140.17,140.15,8.13139877]
[1745320976422,0.03,140.17,140.16,8.13139877]
[1745320979116,0.03,140.17,140.15,8.13139877]
[1745320980628,0.03,140.17,140.16,8.13139877]
[1745320981820,0.03,140.17,140.15,8.13139877]
[1745320982317,0.03,140.17,140.13,26.0]
[1745320982318,0.03,140.17,140.14,26.0]
[1745320982518,0.03,140.17,140.15,8.13139877]
[1745320983021,0.03,140.17,140.16,8.13139877]
[1745320984500,0.03,140.17,140.14,33.1355467]
[1745320984703,0.03,140.17,140.16,8.13139877]
[1745320990416,0.03,140.17,140.16,8.27356034]
[1745320990618,0.03,140.17,140.16,0.14216157]
[1745320990817,0.03,140.17,140.16,8.27356034]
[1745320991521,0.03,140.17,140.16,8.13139877]
[1745320996230,0.03,140.17,140.11,82.6]
[1745320996436,0.03,140.17,140.14,34.13139877]
[1745320996839,7.16419419,140.17,140.14,34.13139877]
[1745320997239,7.16419419,140.17,140.14,26.0]
[1745320997433,7.16419419,140.17,140.14,34.13139877]
[1745320997633,7.16419419,140.17,140.14,26.0]
[1745320997835,7.16419419,140.17,140.15,8.13139877]
[1745320999422,7.16419419,140.17,140.14,34.13139877]
[1745320999741,0.03,140.17,140.16,8.13139877]
[1745321002742,0.03,140.17,140.14,26.0]
[1745321002946,0.03,140.17,140.16,8.13139877]
[1745321015252,0.03,140.17,140.16,26.0]
[1745321015430,0.03,140.17,140.15,8.13139877]
[1745321015762,333.12586415,140.2,140.14,8.13139877]
[1745321015763,5.69139877,140.19,140.14,8.13139877]
[1745321018062,16.89038403,140.18,140.14,26.0]
[1745321019564,16.89038403,140.18,140.14,34.13139877]
[1745321021864,16.89038403,140.18,140.14,26.0]
[1745321022160,16.89038403,140.18,140.14,34.13139877]
[1745321024662,8.13139877,140.17,140.12,26.0]
[1745321024842,8.13139877,140.16,140.12,34.13139877]
[1745321025044,8.13139877,140.17,140.13,8.13139877]
[1745321026361,8.13139877,140.17,140.12,26.0]
[1745321026550,7.13470319,140.16,140.13,8.13139877]
[1745321026744,7.13470319,140.16,140.13,26.0]
[1745321026945,7.13470319,140.16,140.13,34.13139877]
[1745321029955,15.26610196,140.16,140.13,26.0]
[1745321030344,7.13470319,140.16,140.13,34.13139877]
[1745321031253,15.26610196,140.16,140.12,8.13139877]
[1745321031455,8.13139877,140.15,140.1,8.13139877]
[1745321031656,8.13139877,140.13,140.09,8.13139877]
[1745321032158,7.13673993,140.12,140.09,8.13139877]
[1745321032964,7.13673993,140.12,140.09,26.0]
[1745321033169,7.13673993,140.12,140.09,34.13139877]
[1745321033868,7.13673993,140.12,140.09,26.0]
[1745321034055,7.13673993,140.12,140.09,34.13139877]
[1745321034378,7.13673993,140.12,140.08,0.063]
[1745321034379,8.13139877,140.11,140.08,0.063]
[1745321034569,15.2681387,140.12,140.08,8.19439877]
[1745321034755,15.2681387,140.12,140.08,0.063]
[1745321035075,8.13139877,140.11,140.08,0.063]
[1745321035253,15.2681387,140.12,140.08,8.19439877]
[1745321036063,8.13139877,140.11,140.08,0.063]
[1745321036264,15.2681387,140.12,140.08,8.19439877]
[1745321036762,7.13673993,140.12,140.08,8.19439877]
[1745321037271,16.8696479,140.13,140.08,8.19439877]
[1745321038553,8.13139877,140.12,140.08,8.19439877]
[1745321039851,16.86964939,140.13,140.08,0.063]
[1745321040055,16.86964939,140.13,140.09,8.13139877]
[1745321041277,83.0,140.15,140.1,8.13139877]
[1745321041575,8.13139877,140.15,140.1,8.13139877]
[1745321041971,15.26683577,140.15,140.1,8.13139877]
[1745321042779,7.135437,140.15,140.1,8.13139877]
[1745321042959,15.26683577,140.15,140.1,8.13139877]
[1745321043879,7.135437,140.15,140.1,8.13139877]
[1745321044186,15.26683577,140.15,140.1,8.13139877]
[1745321044682,8.13139877,140.14,140.1,8.13139877]
[1745321045760,15.26741913,140.14,140.08,7.20170981]
[1745321045962,15.26741913,140.14,140.1,8.13139877]
[1745321049585,7.13602036,140.14,140.1,8.13139877]
[1745321050886,14.94,140.16,140.1,8.13139877]
[1745321051076,14.94,140.16,140.12,8.13139877]
[1745321051274,8.13139877,140.15,140.11,8.13139877]
[1745321051586,15.26666335,140.15,140.11,8.13139877]
[1745321052294,7.13526458,140.15,140.11,8.13139877]
[1745321052465,15.26666335,140.15,140.11,8.13139877]
[1745321055991,15.26666335,140.15,140.09,33.13822426]
[1745321056191,15.26666335,140.15,140.11,8.13139877]
[1745321066734,15.26610196,140.16,140.11,8.13139877]
[1745321071123,15.26610196,140.16,140.09,33.13822426]
[1745321071418,8.13139877,140.15,140.11,8.13139877]
[1745321071601,15.26692575,140.15,140.11,8.13139877]
[1745321072128,7.13552698,140.15,140.12,8.13139877]
[1745321072299,15.26633094,140.16,140.12,8.13139877]
[1745321075127,7.13493217,140.16,140.12,8.13139877]
[1745321075325,15.26633094,140.16,140.12,8.13139877]
[1745321076926,7.13493217,140.16,140.12,8.13139877]
[1745321079426,9.72639877,140.17,140.12,8.13139877]
[1745321079733,16.86080261,140.17,140.13,8.13139877]
[1745321081028,16.86080261,140.17,140.12,8.13139877]
[1745321083306,30.0453659,140.18,140.13,8.13139877]
[1745321085137,30.0453659,140.18,140.14,8.13139877]
[1745321087538,21.91396713,140.18,140.14,8.13139877]
[1745321087840,7.13396713,140.18,140.14,8.13139877]
[1745321088936,15.2653659,140.18,140.14,8.13139877]
[1745321089144,7.13396713,140.18,140.14,8.13139877]
[1745321089319,91.13139877,140.19,140.14,8.13139877]
[1745321089636,309.69629877,140.2,140.16,8.13139877]
[1745321090924,300.03,140.2,140.17,8.13139877]
[1745321091638,308.16139877,140.2,140.15,8.13139877]
[1745321091943,8.13139877,140.19,140.14,8.13139877]
[1745321092439,8.13139877,140.19,140.15,8.13139877]
[1745321092647,308.16139877,140.2,140.16,8.13139877]
[1745321094822,300.03,140.2,140.13,1.6391]
[1745321095149,308.16139877,140.2,140.15,8.13139877]
[1745321095949,315.29419357,140.2,140.15,8.13139877]
[1745321096441,8.13139877,140.19,140.15,8.13139877]
[1745321098343,15.26462477,140.19,140.15,8.13139877]
[1745321098720,8.13139877,140.19,140.15,8.13139877]
[1745321098920,300.03,140.2,140.15,15.26630764]
[1745321099122,300.03,140.2,140.17,8.13139877]
[1745321101147,300.03,140.2,140.15,7.1349549]
[1745321101344,300.03,140.2,140.17,8.13139877]
[1745321103038,300.03,140.2,140.16,8.13139877]
[1745321103251,315.29416014,140.2,140.16,8.13139877]
[1745321105469,300.03,140.2,140.16,8.13139877]
[1745321105751,300.03,140.2,140.17,8.13139877]
[1745321105950,307.16277005,140.2,140.17,8.13139877]
[1745321107248,307.16277005,140.2,140.16,8.13139877]
[1745321107853,315.29416882,140.2,140.15,8.13139877]
[1745321108648,8.13139877,140.19,140.12,39.5914312]
[1745321108833,8.13139877,140.19,140.14,8.13139877]
[1745321109239,8.13139877,140.19,140.12,32.4549]
[1745321109450,7.13368526,140.18,140.12,32.4549]
[1745321109647,7.13368526,140.18,140.14,8.13139877]
[1745321110956,7.13368526,140.18,140.15,8.13139877]
[1745321111133,7.13368526,140.18,140.12,39.59156185]
[1745321111334,7.13368526,140.18,140.15,8.13139877]
[1745321113156,7.13368526,140.18,140.14,26.0]
[1745321113368,7.13368526,140.18,140.14,34.13139877]
[1745321114958,7.13368526,140.18,140.15,8.13139877]
[1745321115164,7.13341852,140.19,140.16,8.13139877]
[1745321115662,7.13341852,140.19,140.15,8.13139877]
[1745321116635,15.26481729,140.19,140.15,8.13139877]
[1745321117470,7.13341852,140.19,140.15,8.13139877]
[1745321118959,15.26481729,140.19,140.15,8.13139877]
[1745321119352,15.26481729,140.19,140.13,26.0]
[1745321119553,7.13341852,140.19,140.16,8.13139877]
[1745321119760,7.13341852,140.19,140.13,33.13615616]
[1745321120153,7.13341852,140.19,140.16,8.13139877]
[1745321121167,309.78539877,140.2,140.16,8.13139877]
[1745321121168,308.78684595,140.2,140.16,8.13139877]
[1745321121372,307.16284595,140.2,140.16,8.13139877]
[1745321123572,307.16284595,140.2,140.14,7.13570208]
[1745321123879,316.80934472,140.2,140.14,8.13139877]
[1745321125471,308.67794595,140.2,140.14,8.13139877]
[1745321125647,316.80934472,140.2,140.14,8.13139877]
[1745321126063,316.80934472,140.2,140.15,8.13139877]
[1745321126769,308.67794595,140.2,140.16,8.13139877]
[1745321126963,307.16284595,140.2,140.16,8.13139877]
[1745321134669,300.03,140.2,140.17,8.13139877]
[1745321134871,300.03,140.2,140.18,8.13139877]
[1745321135180,300.03,140.2,140.19,8.13139877]
[1745321135889,300.03,140.2,140.19,15.26457517]
[1745321136368,300.03,140.2,140.19,15.40673674]
[1745321139087,300.03,140.2,140.19,8.27356034]
[1745321139564,300.03,140.2,140.19,41.40673674]
[1745321140089,300.03,140.2,140.19,34.27356034]
[1745321140384,300.03,140.2,140.19,41.40673674]
[1745321140970,300.03,140.2,140.19,34.27356034]
[1745321142183,300.03,140.2,140.19,41.40673674]
[1745321143387,300.03,140.2,140.19,34.27356034]
[1745321145279,300.03,140.2,140.19,34.13139877]
[1745321146284,300.03,140.2,140.19,41.26457517]
[1745321146796,0.03,140.2,140.19,41.26457517]
[1745321147987,0.03,140.2,140.19,41.40673674]
[1745321148683,0.03,140.2,140.19,15.40673674]
[1745321150892,0.03,140.21,140.19,47.93233182]
[1745321151098,0.03,140.21,140.2,66.65699385]
[1745321151398,0.03,140.21,140.2,109.44699385]
[1745321151902,0.03,140.21,140.2,123.15826146]
[1745321152405,0.03,140.21,140.2,141.95007189]
[1745321153082,1.2251551,140.23,140.22,8.27356034]
[1745321153799,1.2251551,140.23,140.22,15.4052106]
[1745321156182,1.2251551,140.23,140.22,34.05485946]
[1745321157705,0.03,140.25,140.23,18.79181043]
[1745321157886,0.03,140.25,140.24,7.1306332]
[1745321158079,0.03,140.25,140.24,15.26203197]
[1745321158281,0.03,140.25,140.24,41.26203197]
[1745321158491,0.03,140.26,140.25,26.0]
[1745321158696,0.03,140.26,140.25,34.13139877]
[1745321159622,0.03,140.26,140.25,41.26152354]
[1745321160913,0.03,140.26,140.25,60.05333397]
[1745321161506,0.03,140.26,140.25,102.84333397]
[1745321166113,0.03,140.26,140.25,41.40368511]
[1745321166288,0.03,140.26,140.25,34.13139877]
[1745321166697,0.03,140.26,140.25,34.27356034]
[1745321167520,0.03,140.26,140.25,34.13139877]
[1745321169211,0.03,140.26,140.25,41.40368511]
[1745321171306,0.03,140.26,140.25,34.27356034]
[1745321172001,0.03,140.26,140.23,97.10216157]
[1745321172205,0.03,140.26,140.24,8.13139877]
[1745321172402,0.03,140.26,140.24,34.13139877]
[1745321172604,0.03,140.26,140.25,8.13139877]
[1745321174321,0.03,140.26,140.25,15.40368511]
[1745321177233,0.03,140.26,140.24,26.0]
[1745321177418,0.03,140.26,140.25,8.13139877]
[1745321178941,0.03,140.26,140.24,26.0]
[1745321179110,0.03,140.26,140.25,8.13139877]
[1745321179425,0.03,140.26,140.24,26.0]
[1745321179601,0.03,140.26,140.25,8.13139877]
[1745321187950,0.03,140.26,140.24,26.0]
[1745321188110,0.03,140.26,140.25,8.13139877]
[1745321191149,0.03,140.26,140.25,15.26152354]
[1745321191527,0.03,140.26,140.25,8.13139877]
[1745321195565,0.03,140.26,140.25,15.26152354]
[1745321196753,0.03,140.26,140.25,8.13139877]
[1745321196954,0.03,140.26,140.25,15.40368511]
[1745321200350,0.03,140.26,140.25,15.26152354]
[1745321200650,0.03,140.26,140.25,15.40368511]
[1745321213955,0.03,140.26,140.25,34.05333397]
[1745321216251,0.03,140.26,140.25,76.84333397]
[1745321216762,0.03,140.26,140.25,15.26152354]
[1745321217161,0.03,140.26,140.25,15.40368511]
[1745321220070,0.03,140.26,140.25,15.26152354]
[1745321220257,0.03,140.26,140.25,15.40368511]
[1745321222975,0.03,140.26,140.25,41.40368511]
[1745321226384,0.03,140.26,140.25,84.19368511]
[1745321226580,0.03,140.26,140.25,41.40368511]
[1745321229174,0.03,140.26,140.25,60.05333397]
[1745321229475,1.6619,140.32,140.31,8.13139877]
[1745321238783,1.6619,140.32,140.3,8.13139877]
[1745321241096,1.6619,140.32,140.31,8.13139877]
[1745321241676,0.03,140.32,140.31,8.13139877]
[1745321242994,0.03,140.32,140.31,15.25847453]
[1745321247691,0.03,140.32,140.31,8.13139877]
[1745321249295,0.03,140.32,140.31,15.25847453]
[1745321249889,0.03,140.32,140.31,8.13139877]
[1745321258701,0.03,140.32,140.31,15.25847453]
[1745321267815,0.03,140.32,140.31,8.13139877]
[1745321268710,0.03,140.32,140.31,15.25847453]
[1745321276710,0.03,140.32,140.31,41.4006361]
[1745321279419,0.03,140.32,140.31,47.00180201]
[1745321279622,0.03,140.32,140.31,41.4006361]
[1745321279920,0.03,140.32,140.31,41.25847453]
[1745321280098,300.0,140.33,140.32,18.79181043]
[1745321280099,63.66468898,140.33,140.32,18.79181043]
[1745321280302,42.32676601,140.33,140.32,26.9232092]
[1745321281821,42.32676601,140.33,140.32,34.04977704]
[1745321283327,42.32676601,140.33,140.32,15.40012818]
[1745321283506,42.32676601,140.33,140.32,41.40012818]
[1745321284128,42.32676601,140.33,140.32,41.25796661]
[1745321284422,42.32676601,140.33,140.32,34.13139877]
[1745321284625,42.32676601,140.33,140.32,8.13139877]
[1745321286729,42.32676601,140.33,140.31,22.47139877]
[1745321286908,42.32676601,140.33,140.31,8.13139877]
[1745321287220,42.32676601,140.33,140.32,8.13139877]
[1745321288643,42.32676601,140.33,140.32,15.25796661]
[1745321295419,42.32676601,140.33,140.32,0.03]
[1745321300735,42.32676601,140.33,140.32,26.03]
[1745321304649,42.32676601,140.33,140.32,0.03]
[1745321316922,42.32676601,140.33,140.32,8.16139877]
[1745321318021,42.32676601,140.33,140.32,15.28796661]
[1745321324562,42.32676601,140.33,140.32,15.43012818]
[1745321325453,42.32676601,140.33,140.32,15.28796661]
[1745321325630,42.32676601,140.33,140.32,15.43012818]
[1745321335752,42.32676601,140.33,140.32,8.16139877]
[1745321336663,42.32676601,140.33,140.32,15.28796661]
[1745321340966,42.32676601,140.33,140.32,15.43012818]
[1745321347768,42.32676601,140.33,140.32,34.07977704]
[1745321347957,42.32676601,140.33,140.32,76.81977704]
[1745321349773,42.32676601,140.33,140.32,15.43012818]
[1745321376496,42.32676601,140.33,140.32,41.43012818]
[1745321384615,42.32676601,140.33,140.32,41.28796661]
[1745321384799,42.32676601,140.33,140.32,41.43012818]
[1745321390220,42.32676601,140.33,140.32,55.73012818]
[1745321399026,42.32676601,140.33,140.32,47.45656784]
[1745321399237,42.32676601,140.33,140.32,55.58796661]
[1745321400316,42.32676601,140.33,140.32,55.73012818]
[1745321405147,42.32676601,140.33,140.32,55.58796661]
[1745321405842,42.32676601,140.33,140.32,55.73012818]
[1745321406329,42.32676601,140.33,140.32,48.37977704]
[1745321407819,42.32676601,140.33,140.32,130.97977704]
[1745321408745,42.32676601,140.33,140.32,173.71977704]
[1745321409038,0.03,140.38,140.36,26.0]
[1745321409228,0.03,140.38,140.37,8.13139877]
[1745321410335,0.03,140.38,140.35,7.12487585]
[1745321410551,0.03,140.38,140.37,34.13139877]
[1745321411244,1.5868,140.38,140.37,26.0]
[1745321411732,1.5868,140.38,140.37,8.13139877]
[1745321413640,1.5868,140.38,140.36,8.13139877]
[1745321413847,1.5868,140.38,140.36,34.13139877]
[1745321414337,1.5868,140.38,140.37,8.13139877]
[1745321415320,0.03,140.38,140.37,8.13139877]
[1745321415828,0.03,140.38,140.37,15.25542812]
[1745321416454,0.03,140.38,140.37,41.25542812]
[1745321417152,0.03,140.38,140.37,41.39758969]
[1745321418049,0.03,140.38,140.37,41.25542812]
[1745321419924,0.03,140.38,140.37,34.13139877]
[1745321422124,0.03,140.38,140.37,8.13139877]
[1745321422319,0.03,140.38,140.37,34.13139877]
[1745321423155,0.03,140.38,140.37,26.0]
[1745321424048,0.03,140.38,140.37,34.13139877]
[1745321430470,0.03,140.38,140.37,41.25542812]
[1745321433449,0.03,140.38,140.37,26.0]
[1745321433960,0.03,140.38,140.37,41.25542812]
[1745321434162,0.03,140.38,140.37,34.13139877]
[1745321434773,0.03,140.38,140.37,41.25542812]
[1745321436658,0.03,140.38,140.37,34.13139877]
[1745321437268,0.03,140.38,140.37,33.12402935]
[1745321437461,0.03,140.38,140.34,90.73139877]
[1745321437665,0.03,140.38,140.34,116.73139877]
[1745321437868,0.03,140.38,140.34,123.85685039]
[1745321438190,0.03,140.38,140.35,8.13139877]
[1745321438482,0.03,140.38,140.34,115.72545162]
[1745321438686,0.03,140.38,140.35,8.13139877]
[1745321440257,0.03,140.38,140.36,8.13139877]
[1745321445463,0.03,140.38,140.35,8.13139877]
[1745321447869,0.03,140.38,140.35,15.25637829]
[1745321448989,0.03,140.38,140.36,8.13139877]
[1745321449567,0.03,140.38,140.36,15.25590914]
[1745321449767,0.03,140.38,140.36,8.13139877]
[1745321450489,0.03,140.38,140.37,8.13139877]
[1745321454388,0.03,140.38,140.37,15.25542812]
[1745321454695,0.03,140.38,140.37,8.13139877]
[1745321454895,0.03,140.38,140.37,15.25542812]
[1745321456470,0.03,140.38,140.37,8.13139877]
[1745321457680,0.03,140.38,140.37,15.25542812]
[1745321459782,0.03,140.38,140.37,8.13139877]
[1745321461973,0.03,140.38,140.37,15.25542812]
[1745321462686,0.03,140.38,140.37,15.39758969]
[1745321463390,0.03,140.38,140.37,41.39758969]
[1745321463590,0.03,140.38,140.37,60.04723855]
[1745321465187,0.03,140.38,140.37,41.39758969]
[1745321465388,0.03,140.38,140.37,60.04723855]
[1745321465996,0.03,140.39,140.38,26.9232092]
[1745321466679,0.03,140.39,140.38,34.04673106]
[1745321467180,0.03,140.39,140.38,15.3970822]
[1745321469095,0.03,140.39,140.38,41.3970822]
[1745321471696,0.03,140.39,140.37,82.6]
[1745321471903,0.03,140.39,140.38,8.13139877]
[1745321473497,0.03,140.39,140.37,108.6]
[1745321473703,0.03,140.39,140.34,14.28]
[1745321473704,0.03,140.39,140.36,8.13139877]
[1745321474000,0.03,140.39,140.35,26.0]
[1745321474200,8.16139877,140.39,140.35,34.13139877]
[1745321474593,15.28457854,140.39,140.35,34.13139877]
[1745321474991,0.03,140.39,140.36,8.13139877]
[1745321480223,0.03,140.39,140.36,7.84345877]
[1745321481102,0.03,140.39,140.37,8.13139877]
[1745321488938,0.03,140.39,140.38,8.13139877]
[1745321490029,0.03,140.39,140.37,8.13139877]
[1745321490329,0.03,140.39,140.38,8.13139877]
[1745321490516,0.03,140.39,140.37,8.13139877]
[1745321490917,0.03,140.39,140.35,33.12478383]
[1745321491116,0.03,140.39,140.36,8.13139877]
[1745321491502,8.16139877,140.39,140.35,34.13139877]
[1745321491706,9.81599877,140.39,140.35,34.13139877]
[1745321492718,7.12352186,140.38,140.35,34.13139877]
[1745321493733,15.25492063,140.38,140.35,26.0]
[1745321494532,7.12352186,140.38,140.35,26.0]
[1745321494904,7.12352186,140.38,140.33,7.12604757]
[1745321495110,7.12352186,140.38,140.34,8.13139877]
[1745321496145,8.13139877,140.37,140.33,26.0]
[1745321497242,8.13139877,140.37,140.33,34.13139877]
[1745321498929,8.13139877,140.34,140.32,0.03]
[1745321500216,15.25739954,140.34,140.32,0.03]
[1745321500615,8.13139877,140.33,140.32,0.03]
[1745321501627,26.78104763,140.33,140.32,0.03]